fUST/lending_fUST_20251023
["ID","MTS","AMOUNT","RATE_DAILY","PERIOD"]
[392158080,1761220242442,-1000.0,0.00024523,2]
[392158082,1761220242455,-1000.0,0.00024523,2]
[392158084,1761220242465,-1000.0,0.00024523,2]
[392158086,1761220242476,-1000.0,0.00024523,2]
[392158088,1761220242487,-1000.0,0.00024523,2]
[392158090,1761220242496,-1000.0,0.00024523,2]
[392158092,1761220242506,-1000.0,0.00024523,2]
[392158094,1761220242515,-1000.0,0.00024523,2]
[392158096,1761220242527,-1000.0,0.00024523,2]
[392158098,1761220242536,-1000.0,0.00024523,2]
[392158100,1761220242546,-1000.0,0.00024523,2]
[392158102,1761220242555,-1000.0,0.00024523,2]
[392158105,1761220242565,-1000.0,0.00024523,2]
[392158107,1761220242575,-1000.0,0.00024523,2]
[392158108,1761220242584,-1000.0,0.00024523,2]
[392158111,1761220242595,-1000.0,0.00024523,2]
[392158113,1761220242605,-1000.0,0.00024523,2]
[392158115,1761220242614,-1000.0,0.00024523,2]
[392158117,1761220242624,-506.0,0.00024549,2]
[392158119,1761220242633,-805.73560322,0.00024575,2]
[392158121,1761220242643,-151.0,0.000246,6]
[392158123,1761220242653,-151.0,0.000246,7]
[392158125,1761220242662,-506.0,0.00024604,2]
[392158127,1761220242671,-24959.77217659,0.0002465,2]
[392158129,1761220242680,-151.0,0.00024658,7]
[392158130,1761220242689,-151.0,0.00024658,7]
[392158138,1761220242753,-151.0,0.00024658,7]
[392158140,1761220242763,-151.0,0.00024658,7]
[392158142,1761220242772,-151.0,0.00024658,7]
[392158144,1761220242781,-151.0,0.00024658,7]
[392158146,1761220242791,-151.0,0.00024658,7]
[392158148,1761220242800,-151.0,0.00024658,7]
[392158150,1761220242809,-151.0,0.00024658,7]
[392158152,1761220242819,-151.0,0.00024658,7]
[392158154,1761220242828,-151.0,0.00024658,7]
[392158156,1761220242837,-151.0,0.00024658,7]
[392158158,1761220242846,-151.0,0.00024658,7]
[392158160,1761220242855,-151.0,0.00024658,7]
[392158163,1761220242869,-380.0,0.00024658,2]
[392158165,1761220242879,-151.0,0.00024658,7]
[392158167,1761220242888,-151.0,0.00024658,7]
[392158168,1761220242898,-151.0,0.00024658,7]
[392158171,1761220242907,-182.353176,0.00024658,7]
[392158173,1761220242922,-343.038995,0.00024658,7]
[392158174,1761220242931,-343.038995,0.00024658,7]
[392158176,1761220242942,-343.038995,0.00024658,7]
[392158178,1761220242951,-343.038995,0.00024658,7]
[392158181,1761220242960,-343.038995,0.00024658,7]
[392158183,1761220242970,-343.038995,0.00024658,7]
[392158184,1761220242979,-343.038995,0.00024658,7]
[392158187,1761220242988,-343.038995,0.00024658,7]
[392158189,1761220242998,-343.038995,0.00024658,7]
[392158191,1761220243008,-343.038995,0.00024658,7]
[392158192,1761220243017,-343.038995,0.00024658,7]
[392158194,1761220243028,-343.038995,0.00024658,7]
[392158196,1761220243038,-343.038995,0.00024658,7]
[392158198,1761220243047,-343.038995,0.00024658,7]
[392158200,1761220243056,-343.038995,0.00024658,7]
[392158201,1761220243066,-343.038995,0.00024658,7]
[392158204,1761220243076,-343.038995,0.00024658,7]
[392158206,1761220243086,-343.038995,0.00024658,7]
[392158207,1761220243096,-343.038995,0.00024658,7]
[392158209,1761220243106,-343.038988,0.00024658,7]
[392158212,1761220243115,-500.0,0.00024658,2]
[392158213,1761220243124,-500.0,0.00024658,2]
[392158215,1761220243134,-500.0,0.00024658,2]
[392158217,1761220243143,-500.0,0.00024658,2]
[392158219,1761220243152,-500.0,0.00024658,2]
[392158221,1761220243162,-261.03969709,0.00024658,2]
[392158223,1761220243171,-500.0,0.00024658,2]
[392158225,1761220243180,-500.0,0.00024658,2]
[392158227,1761220243190,-814.8115688,0.00024658,2]
[392158229,1761220243200,-814.8115688,0.00024658,2]
[392158231,1761220243210,-814.8115688,0.00024658,2]
[392158233,1761220243219,-814.8115688,0.00024658,2]
[392158235,1761220243230,-814.8115688,0.00024658,2]
[392158237,1761220243240,-814.8115688,0.00024658,2]
[392158239,1761220243250,-814.8115688,0.00024658,2]
[392158241,1761220243259,-814.8115688,0.00024658,2]
[392158243,1761220243270,-814.8115688,0.00024658,2]
[392158245,1761220243280,-814.8115688,0.00024658,2]
[392158247,1761220243290,-814.8115688,0.00024658,2]
[392158249,1761220243300,-814.8115688,0.00024658,2]
[392158251,1761220243310,-814.8115688,0.00024658,2]
[392158253,1761220243319,-814.8115688,0.00024658,2]
[392158255,1761220243329,-814.8115688,0.00024658,2]
[392158258,1761220243339,-814.8115688,0.00024658,2]
[392158260,1761220243348,-814.8115688,0.00024658,2]
[392158261,1761220243358,-814.8115688,0.00024658,2]
[392158263,1761220243367,-814.8115688,0.00024658,2]
[392158265,1761220243376,-814.8115688,0.00024658,2]
[392158267,1761220243385,-814.8115688,0.00024658,2]
[392158269,1761220243395,-814.8115688,0.00024658,2]
[392158271,1761220243404,-814.8115688,0.00024658,2]
[392158273,1761220243414,-814.8115688,0.00024658,2]
[392158275,1761220243423,-814.8115688,0.00024658,2]
[392158277,1761220243432,-814.8115688,0.00024658,2]
[392158279,1761220243441,-814.8115688,0.00024658,2]
[392158281,1761220243456,-814.8115688,0.00024658,2]
[392158283,1761220243465,-814.8115688,0.00024658,2]
[392158285,1761220243475,-814.8115688,0.00024658,2]
[392158287,1761220243485,-814.8115688,0.00024658,2]
[392158289,1761220243496,-814.8115688,0.00024658,2]
[392158291,1761220243505,-814.8115688,0.00024658,2]
[392158293,1761220243515,-814.8115688,0.00024658,2]
[392158295,1761220243530,-814.8115688,0.00024658,2]
[392158297,1761220243539,-814.8115688,0.00024658,2]
[392158299,1761220243549,-814.8115688,0.00024658,2]
[392158301,1761220243557,-814.8115688,0.00024658,2]
[392158303,1761220243567,-814.8115688,0.00024658,2]
[392158305,1761220243577,-814.8115688,0.00024658,2]
[392158307,1761220243587,-814.8115688,0.00024658,2]
[392158309,1761220243596,-814.8115688,0.00024658,2]
[392158311,1761220243605,-814.8115688,0.00024658,2]
[392158313,1761220243615,-814.8115688,0.00024658,2]
[392158315,1761220243625,-814.8115688,0.00024658,2]
[392158317,1761220243635,-814.8115688,0.00024658,2]
[392158319,1761220243645,-814.8115688,0.00024658,2]
[392158321,1761220243655,-814.8115688,0.00024658,2]
[392158323,1761220243665,-814.8115688,0.00024658,2]
[392158324,1761220243679,-814.8115688,0.00024658,2]
[392158325,1761220243688,-814.8115688,0.00024658,2]
[392158326,1761220243698,-814.8115688,0.00024658,2]
[392158327,1761220243766,-814.8115688,0.00024658,2]
[392158328,1761220243776,-814.8115688,0.00024658,2]
[392158329,1761220243786,-814.8115688,0.00024658,2]
[392158331,1761220243798,-814.8115688,0.00024658,2]
[392158333,1761220243807,-814.8115688,0.00024658,2]
[392158335,1761220243817,-814.8115688,0.00024658,2]
[392158337,1761220243827,-814.8115688,0.00024658,2]
[392158339,1761220243836,-814.8115688,0.00024658,2]
[392158341,1761220243846,-814.8115688,0.00024658,2]
[392158343,1761220243855,-814.8115688,0.00024658,2]
[392158345,1761220243864,-500.0,0.00024658,2]
[392158347,1761220243874,-500.0,0.00024658,2]
[392158349,1761220243883,-500.0,0.00024658,2]
[392158351,1761220243892,-500.0,0.00024658,2]
[392158353,1761220243902,-349.35727387,0.00024658,2]
[392158355,1761220243911,-811.90152747,0.00024658,2]
[392158358,1761220243930,-811.90152747,0.00024658,2]
[392158360,1761220243943,-811.90152747,0.00024658,2]
[392158362,1761220243954,-811.90152747,0.00024658,2]
[392158364,1761220243965,-811.90152747,0.00024658,2]
[392158366,1761220243975,-811.90152747,0.00024658,2]
[392158368,1761220243984,-811.90152747,0.00024658,2]
[392158370,1761220243994,-811.90152747,0.00024658,2]
[392158372,1761220244003,-811.90152747,0.00024658,2]
[392158374,1761220244012,-811.90152747,0.00024658,2]
[392158376,1761220244022,-811.90152747,0.00024658,2]
[392158378,1761220244031,-811.90152747,0.00024658,2]
[392158380,1761220244041,-811.90152747,0.00024658,2]
[392158382,1761220244051,-811.90152747,0.00024658,2]
[392158385,1761220244061,-811.90152747,0.00024658,2]
[392158387,1761220244070,-811.90152747,0.00024658,2]
[392158389,1761220244080,-811.90152747,0.00024658,2]
[392158391,1761220244089,-811.90152747,0.00024658,2]
[392158393,1761220244100,-811.90152747,0.00024658,2]
[392158395,1761220244110,-811.90152747,0.00024658,2]
[392158397,1761220244120,-811.90152747,0.00024658,2]
[392158399,1761220244130,-811.90152747,0.00024658,2]
[392158401,1761220244140,-811.90152747,0.00024658,2]
[392158403,1761220244150,-811.90152747,0.00024658,2]
[392158404,1761220244159,-811.90152747,0.00024658,2]
[392158407,1761220244169,-811.90152747,0.00024658,2]
[392158409,1761220244179,-811.90152747,0.00024658,2]
[392158411,1761220244189,-811.90152759,0.00024658,2]
[392158413,1761220244199,-506.0,0.00024659,2]
[392158415,1761220244209,-500.0,0.00024671,2]
[392158417,1761220244218,-501.52385133,0.00024673,2]
[392158419,1761220244228,-500.0,0.00024673,2]
[392158421,1761220244238,-500.0,0.00024673,2]
[392158423,1761220244248,-3500.0,0.000247,2]
[392158425,1761220244258,-151.0,0.000247,5]
[392158427,1761220244268,-990.0,0.000247,2]
[392158429,1761220244277,-3018.09328709,0.000247,4]
[392158431,1761220244287,-990.0,0.000247,3]
[392158433,1761220244296,-151.0,0.000247,9]
[392158436,1761220244306,-506.0,0.00024714,2]
[392158438,1761220244316,-1377.217618,0.00024715,2]
[392158440,1761220244326,-506.0,0.00024769,2]
[392158442,1761220244336,-30805.17,0.000248,7]
[392158444,1761220244346,-9298.91369016,0.000248,2]
[392158446,1761220244357,-2359.4545672,0.00024805,2]
[392158448,1761220244367,-341.90152044,0.00024805,2]
[392158450,1761220244376,-1597.7067697,0.00024805,2]
[392158452,1761220244386,-15132.3618235,0.00024807,2]
[392158454,1761220244396,-186.9677385,0.00024807,2]
[392158456,1761220244406,-506.0,0.00024823,2]
[392158458,1761220244415,-6861.8814335,0.00024871,2]
[392158460,1761220244425,-200.0,0.00024873,2]
[392158462,1761220244434,-506.0,0.00024878,2]
[392158464,1761220244446,-345.329852,0.000249,2]
[392158466,1761220244457,-211.539537,0.000249,2]
[392158468,1761220244466,-99788.84154323,0.000249,2]
[392158494,1761220244703,-696.18665992,0.000249,2]
[392158496,1761220244715,-10932.0,0.000249,2]
[392158520,1761220244931,5000.0,0.000239,9]
[392158706,1761220247617,-474.46,0.00023825,3]
[392158707,1761220247628,-151.0,0.00023837,2]
[392158708,1761220247637,-75525.28656019,0.000249,2]
[392158709,1761220247652,-20435.32982962,0.000249,2]
[392158710,1761220250379,168.85,0.00022096,2]
[392158711,1761220250812,225.13,0.00023057,2]
[392158722,1761220254402,5000.0,0.000239,9]
[392158723,1761220262625,5000.0,0.000239,9]
[392158724,1761220279144,5000.0,0.00023501,2]
[392158725,1761220280998,200.0,0.00036154,120]
[392158726,1761220317404,1000.0,0.00036154,120]
[392158727,1761220325416,153.81,0.00022384,2]
[392158728,1761220325930,205.07,0.00023358,2]
[392158729,1761220360589,5000.0,0.0002127,2]
[392158735,1761220400484,186.8,0.00023282,2]
[392158736,1761220443074,666.0,0.00022836,2]
[392158737,1761220452748,395.21084133,0.00023635,2]
[392158738,1761220469658,233.4905,0.0003013,120]
[392158739,1761220473376,177.29,0.00023292,2]
[392158740,1761220499558,3574.70915867,0.00023673,2]
[392158741,1761220499584,1425.29084133,0.00023673,2]
[392158742,1761220522789,1775.5363937,0.00023673,2]
[392158744,1761220543653,347.26610319,0.00023633,4]
[392158745,1761220546423,168.27,0.00023143,2]
[392158746,1761220582829,200.0,0.0003607,120]
[392158752,1761220597978,998.94006604,0.0002074,2]
[392158753,1761220619437,159.7,0.0002315,2]
[392158754,1761220670271,926.23329602,0.00023634,2]
[392158756,1761220692389,151.57,0.00023133,2]
[392158757,1761220732513,194.812787,0.00030137,120]
[392158760,1761220820866,323.940546,0.00013699,2]
[392158761,1761220821282,323.940546,0.00020187,2]
[392158763,1761220875535,810.454134,0.00023634,2]
[392158764,1761220879282,373.35980956,0.00023534,2]
[392158765,1761220880111,200.0,0.0003611,120]
[392158766,1761220882081,672.04765722,0.00023534,2]
[392158767,1761220885010,1194.75139061,0.00023534,2]
[392158768,1761220887718,1866.79904782,0.00023534,2]
[392158769,1761220909227,922.785466,0.00022731,2]
[392158770,1761220925846,2394.82226208,0.00023635,2]
[392158772,1761220941110,480.6616908,0.00023635,2]
[392158773,1761221005168,239.60032821,0.00023534,2]
[392158774,1761221008062,431.28059078,0.00023534,2]
[392158775,1761221010927,766.72105028,0.00023534,2]
[392158776,1761221014226,1198.00164106,0.00023534,2]
[392158777,1761221016442,831.45482648,0.00023651,2]
[392158778,1761221047555,151.73,0.00023438,2]
[392158779,1761221080150,6381.22156319,0.00023673,2]
[392158780,1761221080171,3618.77843681,0.00023673,2]
[392158781,1761221080913,709.14736725,0.00023625,2]
[392158782,1761221176759,443.92772063,0.00023534,2]
[392158783,1761221179886,799.06989714,0.00023534,2]
[392158784,1761221181925,200.0,0.0003611,120]
[392158785,1761221182391,1420.56870603,0.00023534,2]
[392158786,1761221185019,2219.63860317,0.00023534,2]
[392158787,1761221185550,1000.0,0.0003611,30]
[392158788,1761221186177,788.87926897,0.00023635,2]
[392158789,1761221186200,807.66890575,0.00023635,2]
[392158790,1761221187711,308.40969543,0.00023651,2]
[392158791,1761221190223,1232.40514295,0.00023651,2]
[392158792,1761221193056,256.0283565,0.00022544,2]
[392158793,1761221195373,1023.08931256,0.00022544,2]
[392158794,1761221226925,4548.0,0.0003611,30]
[392158796,1761221238073,183.0315179,0.00022726,2]
[392158798,1761221265756,152.66,0.00023444,2]
[392158800,1761221281337,384.52935264,0.00023635,2]
[392158801,1761221311884,620.5039463,0.00023625,2]
[392158802,1761221338666,153.11,0.00023287,2]
[392158888,1761221398882,5061.9609329,0.00022729,2]
[392158889,1761221408734,153.11,0.00023285,2]
[392159132,1761221436171,-169.74957246,0.00023722,2]
[392159134,1761221436181,-372.26263208,0.00023722,2]
[392159135,1761221436190,-500.0,0.00023722,2]
[392159136,1761221436200,-500.0,0.00023722,2]
[392159137,1761221436209,-500.0,0.00023722,2]
[392159138,1761221436218,-500.0,0.00023722,2]
[392159139,1761221436227,-500.0,0.00023722,2]
[392159140,1761221436236,-500.0,0.00023722,2]
[392159141,1761221436245,-500.0,0.00023722,2]
[392159142,1761221436254,-500.0,0.00023722,2]
[392159143,1761221436263,-500.0,0.00023722,2]
[392159144,1761221436272,-500.0,0.00023722,2]
[392159145,1761221436282,-473.39391457,0.00023722,2]
[392159146,1761221436290,-500.0,0.00023722,2]
[392159147,1761221436299,-441.67525734,0.00023722,2]
[392159149,1761221436308,-500.0,0.00023722,2]
[392159152,1761221436318,-500.0,0.00023722,2]
[392159155,1761221436327,-500.0,0.00023722,2]
[392159158,1761221436336,-533.47845684,0.00023722,2]
[392159161,1761221436346,-1200.0,0.00023722,2]
[392159163,1761221436355,-300.0,0.00023722,2]
[392159166,1761221436364,-300.0,0.00023722,2]
[392159169,1761221436373,-300.0,0.00023722,2]
[392159172,1761221436383,-300.0,0.00023722,2]
[392159175,1761221436392,-1200.0,0.00023722,2]
[392159178,1761221436401,-300.0,0.00023722,2]
[392159180,1761221436410,-50000.0,0.00023723,2]
[392159182,1761221436419,-383.65255609,0.00023723,2]
[392159184,1761221436428,-403.24192968,0.00023725,3]
[392159185,1761221436438,-6131.3,0.00023725,3]
[392159186,1761221436447,-3065.65,0.00023725,3]
[392159187,1761221436456,-1532.82,0.00023725,3]
[392159188,1761221436465,-766.41,0.00023725,3]
[392159189,1761221436475,-383.21,0.00023725,3]
[392159190,1761221436484,-191.6,0.00023725,3]
[392159191,1761221436494,-500.0,0.00023731,2]
[392159192,1761221436503,-522.28381523,0.00023732,2]
[392159193,1761221436513,-500.0,0.00023732,2]
[392159194,1761221436522,-500.0,0.00023732,2]
[392159195,1761221436531,-500.0,0.00023732,2]
[392159196,1761221436540,-750.0,0.00023733,2]
[392159197,1761221436549,-750.0,0.00023733,2]
[392159198,1761221436558,-750.0,0.00023733,2]
[392159199,1761221436567,-500.0,0.00023733,2]
[392159200,1761221436577,-500.0,0.00023733,2]
[392159201,1761221436586,-500.0,0.00023733,2]
[392159202,1761221436596,-534.50207015,0.00023733,2]
[392159203,1761221436605,-353.50477279,0.00023734,2]
[392159204,1761221436615,-500.0,0.00023734,2]
[392159205,1761221436624,-309.52955652,0.00023734,2]
[392159206,1761221436633,-155.401,0.00023734,2]
[392159207,1761221436642,-750.0,0.00023734,2]
[392159208,1761221436651,-750.0,0.00023734,2]
[392159209,1761221436660,-750.0,0.00023734,2]
[392159210,1761221436670,-750.0,0.00023734,2]
[392159211,1761221436679,-750.0,0.00023734,2]
[392159212,1761221436688,-750.0,0.00023734,2]
[392159213,1761221436697,-750.0,0.00023734,2]
[392159214,1761221436707,-750.0,0.00023734,2]
[392159215,1761221436715,-750.0,0.00023734,2]
[392159216,1761221436725,-750.0,0.00023734,2]
[392159217,1761221436734,-750.0,0.00023734,2]
[392159218,1761221436743,-750.0,0.00023734,2]
[392159219,1761221436752,-750.0,0.00023734,2]
[392159220,1761221436761,-750.0,0.00023734,2]
[392159221,1761221436770,-750.0,0.00023734,2]
[392159222,1761221436780,-750.0,0.00023734,2]
[392159223,1761221436790,-750.0,0.00023734,2]
[392159224,1761221436800,-750.0,0.00023734,2]
[392159225,1761221436810,-750.0,0.00023734,2]
[392159226,1761221436819,-750.0,0.00023734,2]
[392159227,1761221436828,-750.13472767,0.00023734,2]
[392159228,1761221436837,-500.0,0.00023734,2]
[392159229,1761221436847,-500.0,0.00023734,2]
[392159230,1761221436856,-500.0,0.00023734,2]
[392159231,1761221436865,-500.0,0.00023734,2]
[392159232,1761221436874,-500.0,0.00023734,2]
[392159233,1761221436884,-500.0,0.00023734,2]
[392159234,1761221436894,-500.0,0.00023734,2]
[392159235,1761221436903,-500.0,0.00023734,2]
[392159236,1761221436912,-173.58,0.00023734,2]
[392159237,1761221436922,-63.95359013,0.00023734,2]
[392159238,1761221436935,-436.04640987,0.00023734,2]
[392159239,1761221436944,-500.0,0.00023734,2]
[392159240,1761221436953,-500.0,0.00023734,2]
[392159241,1761221436963,-500.0,0.00023734,2]
[392159242,1761221436972,-500.0,0.00023734,2]
[392159243,1761221436981,-500.0,0.00023734,2]
[392159244,1761221436991,-500.0,0.00023734,2]
[392159245,1761221437000,-500.0,0.00023734,2]
[392159246,1761221437009,-500.0,0.00023734,2]
[392159247,1761221437020,-500.0,0.00023734,2]
[392159248,1761221437030,-500.0,0.00023734,2]
[392159249,1761221437039,-500.0,0.00023734,2]
[392159250,1761221437049,-500.0,0.00023734,2]
[392159251,1761221437058,-500.0,0.00023734,2]
[392159252,1761221437068,-500.0,0.00023734,2]
[392159253,1761221437080,-168.78125966,0.00023734,2]
[392159254,1761221437090,-8375.66272896,0.00023735,2]
[392159255,1761221437922,-4929.66176748,0.00023735,2]
[392159256,1761221437934,-7279.03804373,0.00023735,2]
[392159430,1761221440327,-10435.32982962,0.00023735,2]
[392160025,1761221446345,1064.3654498,0.00023635,2]
[392160045,1761221458010,3068.31775946,0.00023673,2]
[392160046,1761221481649,200.0,0.0003611,120]
[392160048,1761221521289,2254.0,0.00023673,2]
[392160049,1761221552061,164.18,0.00023299,2]
[392160050,1761221604501,200.0,0.00036099,60]
[392160051,1761221624631,155.83,0.00023162,2]
[392160052,1761221652561,157.0,0.00022,2]
[392160053,1761221706638,709.57696654,0.00023648,2]
[392160054,1761221739956,8813.42303346,0.00023635,2]
[392160055,1761221739978,10000.01,0.00023635,2]
[392160056,1761221740000,10000.01,0.00023635,2]
[392160057,1761221745706,1440.95834715,0.00023501,2]
[392160058,1761221754676,2118.46983766,0.00023501,2]
[392160059,1761221768813,-300.0,0.00023634,2]
[392160060,1761221769259,202.87,0.00021333,2]
[392160061,1761221769682,304.31,0.00022303,2]
[392160062,1761221770156,405.74,0.00023272,2]
[392160063,1761221772639,-8960.83910933,0.00023635,2]
[392160064,1761221775580,-10000.01,0.00023635,2]
[392160065,1761221775683,-10000.01,0.00023635,2]
[392160066,1761221777425,2006.95680989,0.00023501,2]
[392160067,1761221784069,200.0,0.00036099,120]
[392160068,1761221786145,5000.0,0.00023501,2]
[392160069,1761221808113,5000.0,0.0002127,2]
[392160070,1761221809439,4352.09693118,0.00023501,2]
[392160071,1761221840865,-542.94095303,0.00023578,2]
[392160072,1761221840893,-300.0,0.00023633,2]
[392160073,1761221840920,-566.67068957,0.00023634,2]
[392160074,1761221840946,-247.45334095,0.00023634,2]
[392160075,1761221840973,-392.60871743,0.00023634,2]
[392160076,1761221840999,-219.26599051,0.00023634,2]
[392160077,1761221841026,-225.0,0.00023634,2]
[392160078,1761221841055,-326.85280637,0.00023634,2]
[392160079,1761221848293,214.16,0.00021204,2]
[392160080,1761221848602,321.23,0.00022168,2]
[392160081,1761221849087,428.31,0.00023132,2]
[392160082,1761221857016,1200.0,0.00023634,2]
[392160083,1761221870887,5000.0,0.00030136,120]
[392160084,1761221883483,300.0,0.00023634,2]
[392160085,1761221927676,189.63,0.00021232,2]
[392160086,1761221928079,284.44,0.00022197,2]
[392160087,1761221928550,379.25,0.00023162,2]
[392160088,1761221944670,300.0,0.00023634,2]
[392160089,1761221964339,307.62348208,0.00023578,2]
[392160090,1761221966925,488.55628747,0.00023578,2]
[392160091,1761221970066,1500.0,0.00030136,120]
[392160092,1761221972469,4119.47,0.00023625,3]
[392160093,1761221983105,2059.73,0.00023625,3]
[392160094,1761221987031,165.5554571,0.00030136,120]
[392160095,1761221994112,1029.87,0.00023625,3]
[392160096,1761222004801,514.93,0.00023625,3]
[392160097,1761222006552,217.29,0.00021221,2]
[392160098,1761222006864,109.22023045,0.00023634,2]
[392160099,1761222006887,190.77976955,0.00023634,2]
[392160100,1761222006914,300.0,0.00023634,2]
[392160101,1761222006961,300.0,0.00023634,2]
[392160102,1761222006988,300.0,0.00023634,2]
[392160103,1761222007020,1200.0,0.00023634,2]
[392160104,1761222007055,325.94,0.00022185,2]
[392160105,1761222007622,434.59,0.0002315,2]
[392160106,1761222007649,300.0,0.00023634,2]
[392160107,1761222008154,2982.37942637,0.00023635,2]
[392160108,1761222008750,178.85,0.00023625,2]
[392160109,1761222008955,178.85,0.00023625,2]
[392160110,1761222015832,257.47,0.00023625,3]
[392160111,1761222016839,1860.56980597,0.00023635,2]
[392160112,1761222024926,321.0,0.00023625,10]
[392160113,1761222026608,289.1,0.00023625,3]
[392160114,1761222035430,580.48099811,0.00023625,10]
[392160115,1761222035454,103.67900189,0.00023625,10]
[392160116,1761222037482,867.33,0.00023625,3]
[392160117,1761222046497,692.25,0.00023625,10]
[392160118,1761222047925,672.63,0.00023625,3]
[392160119,1761222052369,164.0,0.00022,2]
[392160120,1761222052853,164.0,0.00023014,7]
[392160121,1761222058174,617.28,0.00023625,10]
[392160122,1761222058412,201.22,0.00023625,3]
[392160123,1761222069365,166.59,0.00023625,3]
[392160124,1761222070138,682.8,0.00023625,10]
[392160125,1761222080049,499.82,0.00023625,3]
[392160126,1761222081252,569.0,0.00023625,10]
[392160127,1761222081835,200.0,0.00036105,120]
[392160128,1761222085197,201.37,0.00021217,2]
[392160129,1761222085633,302.06,0.00022182,2]
[392160130,1761222086087,402.74,0.00023146,2]
[392160131,1761222090690,221.22,0.00023625,3]
[392160132,1761222092336,474.16,0.00023625,10]
[392160133,1761222101292,663.66,0.00023625,3]
[392160134,1761222102690,395.14,0.00023625,10]
[392160135,1761222113040,329.28,0.00023625,10]
[392160137,1761222124401,274.4,0.00023625,10]
[392160138,1761222124521,300.0,0.00023634,2]
[392160139,1761222134659,228.67,0.00023625,10]
[392160140,1761222139213,215.1461385,0.00022709,2]
[392160141,1761222146214,190.56,0.00023625,10]
[392160142,1761222157315,401.00485961,0.00023634,2]
[392160143,1761222157338,375.99514039,0.00023634,2]
[392160144,1761222158005,158.8,0.00023625,10]
[392160145,1761222164801,178.3,0.00021274,2]
[392160146,1761222165266,267.46,0.00022241,2]
[392160147,1761222165716,356.61,0.00023207,2]
[392160148,1761222169600,794.0,0.00023625,10]
[392160149,1761222184069,1371.4331843,0.00023273,2]
[392160150,1761222184378,1371.4331843,0.00023293,2]
[392160151,1761222185730,300.0,0.00023634,2]
[392160152,1761222203849,475.07333391,0.00023554,2]
[392160168,1761222227182,325.70419164,0.00023554,2]
[392160170,1761222243774,157.88,0.0002151,2]
[392160171,1761222244259,236.82,0.00022488,2]
[392160172,1761222244686,300.0,0.00023634,2]
[392160173,1761222244721,315.76,0.00023465,2]
[392160182,1761222281607,-1242.76,0.00023635,2]
[392160184,1761222303561,300.0,0.00023634,2]
[392160185,1761222304385,300.0,0.00023634,2]
[392160187,1761222304719,246.09878568,0.00023554,2]
[392160188,1761222306619,300.0,0.00023634,2]
[392160189,1761222306688,1200.0,0.00023634,2]
[392160190,1761222307096,151.0,0.00023635,2]
[392160191,1761222307776,151.0,0.00023635,2]
[392160192,1761222308462,151.0,0.00023635,2]
[392160193,1761222309093,151.0,0.00023635,2]
[392160194,1761222309807,64.64217978,0.00023635,2]
[392160195,1761222309832,86.35782022,0.00023635,2]
[392160198,1761222321519,215.92,0.00022487,2]
[392160200,1761222321990,287.9,0.00023465,2]
[392160203,1761222381458,200.0,0.00036105,120]
[392160204,1761222400222,196.69,0.00022626,2]
[392160211,1761222451160,-168.0,0.00023533,2]
[392160213,1761222475867,189.18,0.00022267,2]
[392160214,1761222476276,252.23,0.00023235,2]